Cogmind - Beta 13 @@@ ROGUE MODE // 2024.04.10 @ 19:22:49 Player: Bean Result: Destroyed by S-10 Pest with Light Assault Rifle Performance ------------- Evolutions (1) 500 Regions Visited (2) 400 Robots Destroyed (2) 10 Value Destroyed (44) 44 Prototype IDs (0) 0 Alien Tech Used (0) 0 Bonus (0) 0 TOTAL SCORE: 954 Bonus ------- None Cogmind --------- Core Integrity 0/400 Matter 252/300 Energy 100/100 System Corruption 0% Temperature Cool (0) Movement Core (50) Location -9/Materials Parts ------- > --- POWER (1) -------- (None) > --- PROPULSION (3) --- (None) > --- UTILITY (3) ------ (None) > --- WEAPON (2) ------- Mining Claw > --- INVENTORY (5) ---- (None) Peak State ------------ > --- POWER ------------ Ion Engine > --- PROPULSION ------- Wheel Wheel > --- UTILITY ---------- Small Storage Unit > --- WEAPON ----------- Assault Rifle Light Assault Rifle > --- INVENTORY -------- (None) [Rating: 6] Favorites ----------- Power Ion Engine Engine Ion Engine Propulsion Wheel Wheel Wheel Flight Unit Flight Unit Utility Small Storage Unit Storage Small Storage Unit Weapon Light Assault Rifle Ballistic Gun Light Assault Rifle Slashing Weapon Mining Claw Build | -11 -10 -9 ------- Run | Yrd Mat Mat Slots Evolved 2 | . . 2 Power . | . . . Propulsion 1 | . . 1 Utility 1 | . . 1 Weapon . | . . . Parts Attached 11 | 6 4 1 Power 1 | 1 . . Engine 1 | 1 . . Core . | . . . Reactor . | . . . Propulsion 4 | 2 2 . Treads . | . . . Leg . | . . . Wheel 2 | 2 . . Hover . | . . . Flight 2 | . 2 . Utility 1 | 1 . . Device . | . . . Storage 1 | 1 . . Processor . | . . . Hackware . | . . . Protection . | . . . Artifact . | . . . Weapon 5 | 2 2 1 Energy Gun . | . . . Energy Cannon . | . . . Ballistic Gun 4 | 2 2 . Ballistic Cannon . | . . . Launcher . | . . . Special Weapon . | . . . Impact Weapon . | . . . Slashing Weapon 1 | . . 1 Piercing Weapon . | . . . Special Melee Weapon . | . . . Unidentified Prototypes . | . . . Parts Lost 9 | . 6 3 Power 1 | . 1 . Propulsion 4 | . 3 1 Utility . | . . . Weapon 4 | . 2 2 Highest Loss Streak 5 | . 5 3 To Critical Strikes . | . . . Average Slot Usage (%) 48 | . 56 28 Engine 3 | . 4 . Wheel 7 | . 10 . Flight 9 | . 10 7 Storage 8 | . 11 . Ballistic Gun 19 | . 19 18 Naked Turns 4 | . . 4 Heaviest Build 13 | 13 13 2 Greatest Support 20 | 20 20 4 Greatest Overweight (x) 1 | . 1 . Average Overweight (x) . | . . . Largest Inventory Capacity 8 | 8 8 5 Average Capacity 6 | 7 7 5 Most Carried 3 | 3 2 1 Average Carried . | . . . Final Capacity 8 | 8 5 5 Final Carried . | . . . Class Distribution -------------------- 100% | Mutant Dominant Class ---------------- Mutant | -10/Materials Mutant | -9/Materials Resources | -11 -10 -9 ----------- Run | Yrd Mat Mat Matter Collected 285 | 247 38 . Remotely . | . . . Salvage Created 57 | . 42 15 Parts 1 | . 1 . Haulers Intercepted . | . . . Recyclers Shooed . | . . . Parts Field Recycled . | . . . Retrieved Matter . | . . . Parts Self-Destructed . | . . . Prevented . | . . . Kills | -11 -10 -9 ------- Run | Yrd Mat Mat Combat Hostiles Destroyed 2 | . 1 1 Guns 2 | . 1 1 Classes Destroyed 2 | . 1 1 Swarmer 1 | . . 1 Grunt 1 | . 1 . Best Kill Streak 1 | . 1 1 Combat Bots Only 1 | . 1 1 Max Kills in Single Turn 1 | . 1 1 Gunslinging . | . . . Exploded . | . . . Melee . | . . . Uniques/NPCs Destroyed . | . . . Combat | -11 -10 -9 -------- Run | Yrd Mat Mat Hostile Shots Fired 177 | . 76 101 Missed 56 | . 26 30 Damage Taken 1276 | . 682 594 Core 647 | . 247 400 Absorbed by Shields . | . . . Core Remaining (%) 50 | 100 1 . Volleys Fired 23 | . 17 6 Largest 2 | . 2 2 Hottest 40 | . 40 40 Shots Fired 40 | . 28 12 Gun 40 | . 28 12 Cannon . | . . . Launcher . | . . . Special . | . . . Kinetic 40 | . 28 12 Thermal . | . . . Explosive . | . . . Electromagnetic . | . . . Robot Hit Streak 5 | . 5 2 Robot Miss Streak 5 | . 5 2 Penetration Max . | . . . Secondary Targets 1 | . . 1 Max Gunslinging Chain 1 | . . 1 Shots Hit Robots 22 | . 14 8 Core Hits 9 | . 7 2 Critical Kills . | . . . Critical Parts Destroyed . | . . . Critical Strikes . | . . . Melee Attacks 4 | . . 4 Impact . | . . . Slashing 4 | . . 4 Piercing . | . . . Sneak Attacks . | . . . Combat Hostiles . | . . . Follow-up Attacks . | . . . Damage Inflicted 278 | . 182 96 Guns 253 | . 182 71 Cannons . | . . . Explosions . | . . . Melee 25 | . . 25 Ramming . | . . . Kinetic 253 | . 182 71 Thermal . | . . . Explosive . | . . . Electromagnetic . | . . . Impact . | . . . Slashing 25 | . . 25 Piercing . | . . . Highest Corruption . | . . . Average Corruption . | . . . Corruption Purged . | . . . Corruption Blocked . | . . . Overload Shots . | . . . Overflow Damage 5 | . . 5 Projectiles . | . . . Explosions . | . . . Melee 5 | . . 5 Knockbacks . | . . . Impact . | . . . Kinetic . | . . . Secondary . | . . . Self-Inflicted Damage . | . . . Shots . | . . . Rammed . | . . . Targets Rammed . | . . . Kicked . | . . . Crushed . | . . . Highest Temperature 37 | . 37 . Average Temperature 19 | . 19 . Received Heat Transfer 432 | . 423 9 Siege Activations . | . . . Robots Corrupted . | . . . Combat Hostiles . | . . . Parts Fried . | . . . Impact Corruptions . | . . . Robots Melted . | . . . Combat Hostiles . | . . . Parts Melted . | . . . Heat Transferred . | . . . Parts Sabotaged . | . . . Parts Stolen . | . . . Parts Stripped . | . . . Power Chain Reactions . | . . . Alert | -11 -10 -9 ------- Run | Yrd Mat Mat Peak Influence 88 | . 35 88 Initial 14 | . . 14 Average 20 | . 11 54 Maximum Alert Level . | . . . Low Security (%) 100 | 100 100 100 Level 1 . | . . . Level 2 . | . . . Level 3 . | . . . Level 4 . | . . . Level 5 . | . . . High Security . | . . . Max Security . | . . . Squads Dispatched 2 | . 2 . Investigation . | . . . Extermination . | . . . Reinforcement 2 | . 2 . Assault . | . . . Garrison . | . . . Intercept . | . . . Searches Triggered . | . . . Construction Impeded . | . . . Haulers Reinforced . | . . . Active Scanning Responses . | . . . Cargo Convoy Interrupts . | . . . Stealth | -11 -10 -9 --------- Run | Yrd Mat Mat Distress Signals 1 | . . 1 Communications Jammed . | . . . Distress Signals . | . . . Times Spotted 20 | . 10 10 Peak Tracking Total 9 | . 7 9 Tactical Retreats . | . . . Traps | -11 -10 -9 ------- Run | Yrd Mat Mat Traps Triggered . | . . . Indirectly . | . . . Trap Hack Attempts . | . . . Triggered . | . . . Disarmed . | . . . Reprogrammed . | . . . Reused . | . . . Traps Extracted . | . . . Installed . | . . . Triggered . | . . . Machines | -11 -10 -9 ---------- Run | Yrd Mat Mat Machines Disabled . | . . . Max in Single Turn . | . . . Machines Repaired . | . . . Machines Dismantled . | . . . Machines Sabotaged . | . . . Overloaded Fab Kills . | . . . Hacking | -11 -10 -9 --------- Run | Yrd Mat Mat Machines Accessed 1 | . . 1 Terminals 1 | . . 1 Fabricators . | . . . Repair Stations . | . . . Recycling Units . | . . . Scanalyzers . | . . . Garrison Access . | . . . Total Hacks 3 | . . 3 Successful 2 | . . 2 Failed 1 | . . 1 Catastrophic . | . . . Database Lockouts . | . . . Manual 3 | . . 3 Terminals 3 | . . 3 Fabricators . | . . . Repair Stations . | . . . Recycling Units . | . . . Scanalyzers . | . . . Garrison Access . | . . . Terminal Hacks 2 | . . 2 Level Access Points 1 | . . 1 Emergency Access Points 1 | . . 1 Fabricator Hacks . | . . . Repair Station Hacks . | . . . Recycling Unit Hacks . | . . . Scanalyzer . | . . . Garrison Access Hacks . | . . . Unauthorized Hacks . | . . . Terminals . | . . . Fabricators . | . . . Repair Stations . | . . . Recycling Units . | . . . Scanalyzers . | . . . Garrison Access . | . . . Data Cores Recovered . | . . . Used . | . . . Hacking Detections . | . . . Full Trace Events . | . . . Feedback Events . | . . . Feedback Blocked . | . . . Robot Schematics Acquired . | . . . Robots Built . | . . . Authchips . | . . . Time . | . . . Total Robot Build Rating . | . . . Part Schematics Acquired . | . . . Parts Built . | . . . Authchips . | . . . Time . | . . . Total Part Build Rating . | . . . Parts Repaired . | . . . Time . | . . . Parts Recycled . | . . . Recycled Matter . | . . . Retrieved Matter . | . . . Retrieved Components . | . . . Parts Scanalyzed . | . . . Part Schematics Acquired . | . . . Parts Damaged . | . . . Bothacking | -11 -10 -9 ------------ Run | Yrd Mat Mat Used RIF Installer . | . . . Robots Hacked . | . . . Non-combat . | . . . Combat . | . . . Robot Hacks Applied . | . . . Relay Couplers Released . | . . . Fabnet Peak Effective % . | . . . Robots Rewired . | . . . Allies Hacked . | . . . Hacks Repelled . | . . . Allies | -11 -10 -9 -------- Run | Yrd Mat Mat Total Allies . | . . . Largest Group . | . . . Highest-Rated Group . | . . . Highest-Rated Ally . | . . . Total Orders . | . . . Ally Attacks . | . . . Total Damage . | . . . Kills . | . . . Allies Corrupted . | . . . Allies Melted . | . . . Intel | -11 -10 -9 ------- Run | Yrd Mat Mat Robot Analysis Total . | . . . Derelict Logs Recovered . | . . . Drone Launches . | . . . Drone Recoveries . | . . . Exploration | -11 -10 -9 ------------- Run | Yrd Mat Mat Turns Passed 298 | 40 186 72 Spaces Moved 360 | 38 218 104 Core 48 | 6 34 8 Treads . | . . . Legs . | . . . Wheels 80 | 32 48 . Hover . | . . . Flight 232 | . 136 96 Fastest Speed 37 | 50 37 40 Average Speed 54 | 75 56 40 Slowest Speed 100 | 80 100 50 Overloaded Moves . | . . . Propulsion Burnouts . | . . . Robots Hopped 1 | . 1 . Cave-ins Triggered . | . . . Exploration Rate (%) 22 | 4 45 19 Regions Visited 2 Branch Regions . Pre-discovered Areas . | . . . Known Exits Taken . | . . . Unknown Exits Taken 2 | 1 1 . Scrap Searched . | . . . Spaces Dug . | . . . Terrain Destroyed . | . . . Melee . | . . . Projectile . | . . . AOE . | . . . Terrain Rammed . | . . . Walls Destroyed . | . . . Machines Disabled . | . . . Actions | -11 -10 -9 --------- Run | Yrd Mat Mat Total 418 | 49 253 116 Wait 11 | . 11 . Move 356 | 37 215 104 Hop 1 | . 1 . Pick Up 11 | 6 4 1 Fast Attach . | . . . Attach 11 | 6 4 1 Detach . | . . . Swap . | . . . Drop 1 | . 1 . Fire 23 | . 17 6 Melee 4 | . . 4 Ram . | . . . Kick . | . . . Crush . | . . . Escape Stasis . | . . . Rewire . | . . . Trap . | . . . Miscellaneous . | . . . Route ------- -11/Scrapyard -10/Materials -9/Materials (discovered 3 exits: Mat x3) History --------- Turn | Location | Event 23 | -11/Scrapyard | Discovered new exit (range 16) 41 | -11/Scrapyard | Entered Materials 117 | -10/Materials | Core integrity fell below 50% 124 | -10/Materials | Core integrity fell below 20% 145 | -10/Materials | Lost 5 parts (1p2n2w) 221 | -10/Materials | Discovered new exit (range 16) 227 | -10/Materials | Entered another Materials area 227 | -9/Materials | Evolved 2 slots: Propulsion x1, Utility x1 236 | -9/Materials | Identified exit to Materials 290 | -9/Materials | Core integrity fell below 50% 297 | -9/Materials | Core integrity fell below 20% 299 | -9/Materials | Destroyed by S-10 Pest with Light Assault Rifle Last Messages --------------- T-07 Excavator is excavating. K-01 Serf collects debris. K-01 Serf cleans the Electrolysis Chamber. C-30 ARC bursts open, deploying its payload. S-10 Pest unfolds itself. K-01 Serf collects debris. S-10 Pest destroyed. Switching to secondary target: S-10 Pest. K-01 Serf collects debris. K-01 Serf cleans the Electrolysis Chamber. Flight Unit destroyed. Lgt. Assault Rifle destroyed. K-01 Serf collects debris. Lgt. Assault Rifle destroyed. Acquired Mining Claw. K-01 Serf collects debris. Destroyed Flight Unit. M-13 Machinist repairs S-10 Pest. W-16 Scout sends out distress signal. K-01 Serf collects debris. Map ----- +----------------------------------------------------+ | ????????????????????????????????????????????????? | | ????????????????????????????????????????????????? | | ???????????????????????????????????